bitfinex-derivatives/quotes_BNBF0:USTF0_20260110
["timestamp","ask_amount","ask_price","bid_price","bid_amount"]
[1768087479642,0.19185974,907.02,906.35,0.68254278]
[1768087479940,0.19185974,907.02,906.36,0.68254278]
[1768087480136,0.19185974,907.02,906.37,0.68254278]
[1768087480343,0.19185974,907.02,906.38,0.68254278]
[1768087480549,0.19185974,907.02,906.39,0.68254278]
[1768087480846,0.19185974,907.02,906.4,0.68254278]
[1768087481051,0.19185974,907.02,906.41,0.68254278]
[1768087481249,0.19185974,907.02,906.42,0.68254278]
[1768087481449,0.19185974,907.02,906.43,0.68254278]
[1768087481647,0.19185974,907.02,906.44,0.68254278]
[1768087481847,0.19185974,907.02,906.45,0.68254278]
[1768087482050,0.19185974,907.02,906.29,1.686]
[1768087482351,0.19185974,907.02,906.3,0.68254343]
[1768087482547,0.19185974,907.02,906.31,0.68254343]
[1768087482847,0.19185974,907.02,906.32,0.68254343]
[1768087483046,0.19185974,907.02,906.29,1.686]
[1768087483047,0.19185974,907.02,906.33,0.68254343]
[1768087483247,0.19185974,907.02,906.34,0.68254343]
[1768087483446,0.19185974,907.02,906.35,0.68254343]
[1768087483747,0.19185974,907.02,906.36,0.68254343]
[1768087483946,0.19185974,907.02,906.37,0.68254343]
[1768087484246,0.19185974,907.02,906.38,0.68254343]
[1768087484446,0.19185974,907.02,906.39,0.68254343]
[1768087484650,0.19185974,907.02,906.4,0.68254343]
[1768087484850,0.19185974,907.02,906.41,0.68254343]
[1768087485047,0.19185974,907.02,906.42,0.68254343]
[1768087485247,0.19185974,907.02,906.43,0.68254343]
[1768087485449,0.19185974,907.02,906.44,0.68254343]
[1768087485652,0.19185974,907.02,906.45,0.68254343]
[1768087485850,0.19185974,907.02,906.46,0.68254343]
[1768087486051,0.19185974,907.02,906.29,1.686]
[1768087486252,0.19185974,907.02,906.3,0.68231577]
[1768087486448,0.19185974,907.02,906.31,0.68231577]
[1768087486648,0.19185974,907.02,906.32,0.68231577]
[1768087486851,0.19185974,907.02,906.33,0.68231577]
[1768087487049,0.19185974,907.02,906.34,0.68231577]
[1768087487254,0.19185974,907.02,906.35,0.68231577]
[1768087487453,0.19185974,907.02,906.36,0.68231577]
[1768087487749,0.19185974,907.02,906.37,0.68231577]
[1768087487950,0.19185974,907.02,906.38,0.68231577]
[1768087488149,0.19185974,907.02,906.39,0.68231577]
[1768087488352,0.19185974,907.02,906.4,0.68231577]
[1768087488651,0.19185974,907.02,906.41,0.68231577]
[1768087488851,0.19185974,907.02,906.42,0.68231577]
[1768087489154,0.19185974,907.02,906.43,0.68231577]
[1768087489351,0.19185974,907.02,906.44,0.68231577]
[1768087489554,0.19185974,907.02,906.45,0.68231577]
[1768087489754,0.19185974,907.02,906.46,0.68231577]
[1768087490055,0.19185974,907.02,906.29,1.686]
[1768087490254,0.19185974,907.02,906.3,0.68199797]
[1768087490454,0.19185974,907.02,906.31,0.68199797]
[1768087490754,0.19185974,907.02,906.32,0.68199797]
[1768087490950,0.19185974,907.02,906.33,0.68199797]
[1768087491252,0.19185974,907.02,906.34,0.68199797]
[1768087491450,0.19185974,907.02,906.35,0.68199797]
[1768087491649,0.19185974,907.02,906.36,0.68199797]
[1768087491849,0.19185974,907.02,906.37,0.68199797]
[1768087492053,0.19185974,907.02,906.38,0.68199797]
[1768087492252,0.19185974,907.02,906.39,0.68199797]
[1768087492454,0.19185974,907.02,906.4,0.68199797]
[1768087492655,0.19185974,907.02,906.41,0.68199797]
[1768087492955,0.19185974,907.02,906.42,0.68199797]
[1768087493154,0.19185974,907.02,906.43,0.68199797]
[1768087493354,0.19185974,907.02,906.44,0.68199797]
[1768087493555,0.19185974,907.02,906.45,0.68199797]
[1768087493850,0.19185974,907.02,906.46,0.68199797]
[1768087494056,0.19185974,907.02,906.17,0.82468815]
[1768087494251,0.19185974,907.02,906.18,0.6830215]
[1768087494456,0.19185974,907.02,906.19,0.6830215]
[1768087494655,0.19185974,907.02,906.2,0.6830215]
[1768087494856,0.19185974,907.02,906.21,0.6830215]
[1768087495056,0.19185974,907.02,906.22,0.6830215]
[1768087495354,0.19185974,907.02,906.26,0.82468815]
[1768087495551,0.19185974,907.02,906.27,1.50770965]
[1768087495753,0.19185974,907.02,906.28,1.50770965]
[1768087495956,0.19185974,907.02,906.29,0.6830215]
[1768087496155,0.19185974,907.02,906.3,0.6830215]
[1768087496353,0.19185974,907.02,906.31,0.6830215]
[1768087496556,5.52291952,907.15,906.32,0.6830215]
[1768087496754,0.19189413,907.12,906.33,0.6830215]
[1768087496956,0.19189413,907.12,906.34,0.6830215]
[1768087497156,0.19189413,907.12,906.35,0.6830215]
[1768087497355,0.19189413,907.12,906.36,0.6830215]
[1768087497559,0.19189413,907.12,906.37,0.6830215]
[1768087497761,0.19189413,907.12,906.38,0.6830215]
[1768087497960,0.19189413,907.12,906.39,0.6830215]
[1768087498160,0.19189413,907.12,906.4,0.6830215]
[1768087498459,0.19189413,907.12,906.41,0.6830215]
[1768087498658,0.19189413,907.12,906.42,0.6830215]
[1768087498860,0.19189413,907.12,906.43,0.6830215]
[1768087499059,0.19189413,907.12,906.44,0.6830215]
[1768087499356,0.19189413,907.12,906.45,0.6830215]
[1768087499656,0.19189413,907.12,906.46,0.6830215]
[1768087499859,0.19189413,907.12,906.47,0.6830215]
[1768087500060,0.19189413,907.12,906.48,0.6830215]
[1768087500262,0.19189413,907.12,906.49,0.6830215]
[1768087500461,0.19189413,907.12,906.5,0.6830215]
[1768087500659,0.19189413,907.12,906.51,0.6830215]
[1768087500862,0.19189413,907.12,906.52,0.6830215]
[1768087501158,0.19189413,907.12,906.53,0.6830215]
[1768087501363,0.19189413,907.12,906.54,0.6830215]
[1768087501662,0.19189413,907.12,906.55,0.6830215]
[1768087501861,0.19189413,907.12,906.56,0.6830215]
[1768087502059,0.19189413,907.12,906.57,0.6830215]
[1768087502259,0.19189413,907.12,906.28,0.82468815]
[1768087502464,0.19189413,907.12,906.29,0.68339853]
[1768087502765,0.19189413,907.12,906.3,0.68339853]
[1768087503064,0.19189413,907.12,906.31,0.68339853]
[1768087503264,0.19189413,907.12,906.32,0.68339853]
[1768087503464,0.19189413,907.12,906.33,0.68339853]
[1768087503759,0.19189413,907.12,906.34,0.68339853]
[1768087504060,0.19189413,907.12,906.35,0.68339853]
[1768087504264,0.19189413,907.12,906.36,0.68339853]
[1768087504463,0.19189413,907.12,906.37,0.68339853]
[1768087504659,0.19189413,907.12,906.38,0.68339853]
[1768087504861,0.19189413,907.12,906.39,0.68339853]
[1768087505064,0.19189413,907.12,906.4,0.68339853]
[1768087505261,0.19189413,907.12,906.41,0.68339853]
[1768087505465,0.19189413,907.12,906.42,0.68339853]
[1768087505765,0.19189413,907.12,906.43,0.68339853]
[1768087505966,0.19189413,907.12,906.44,0.68339853]
[1768087506163,0.19189413,907.12,906.45,0.68339853]
[1768087506366,0.19189413,907.12,906.46,0.68339853]
[1768087506564,0.19189413,907.12,906.47,0.68339853]
[1768087506862,0.19189413,907.12,906.48,0.68339853]
[1768087507068,0.19189413,907.12,906.49,0.68339853]
[1768087507267,0.19189413,907.12,906.5,0.68339853]
[1768087507467,0.19189413,907.12,906.51,0.68339853]
[1768087507664,0.19189413,907.12,906.52,0.68339853]
[1768087507863,0.19189413,907.12,906.53,0.68339853]
[1768087508069,0.19189413,907.12,906.54,0.68339853]
[1768087508269,0.19189413,907.12,906.55,0.68339853]
[1768087508565,0.19189413,907.12,906.56,0.68339853]
[1768087508769,0.19189413,907.12,906.27,2.35968815]
[1768087509067,0.19189413,907.12,906.28,0.68283397]
[1768087509265,0.19189413,907.12,906.29,0.68283397]
[1768087509469,0.19189413,907.12,906.3,0.68283397]
[1768087509667,0.19189413,907.12,906.31,0.68283397]
[1768087509865,0.19189413,907.12,906.32,0.68283397]
[1768087510167,0.19189413,907.12,906.33,0.68283397]
[1768087510368,0.19189413,907.12,906.34,0.68283397]
[1768087510664,0.19189413,907.12,906.35,0.68283397]
[1768087510963,0.19189413,907.12,906.36,0.68283397]
[1768087511165,0.19189413,907.12,906.37,0.68283397]
[1768087511368,0.19189413,907.12,906.38,0.68283397]
[1768087511668,0.19189413,907.12,906.39,0.68283397]
[1768087511866,0.19189413,907.12,906.4,0.68283397]
[1768087512064,0.19189413,907.12,906.41,0.68283397]
[1768087512264,0.19189413,907.12,906.42,0.68283397]
[1768087512464,0.19189413,907.12,906.43,0.68283397]
[1768087512668,0.19189413,907.12,906.44,0.68283397]
[1768087512868,0.19189413,907.12,906.45,0.68283397]
[1768087513069,0.19189413,907.12,906.46,0.68283397]
[1768087513270,0.19189413,907.12,906.47,0.68283397]
[1768087513471,0.19189413,907.12,906.48,0.68283397]
[1768087513666,0.19189413,907.12,906.49,0.68283397]
[1768087513868,0.19189413,907.12,906.5,0.68283397]
[1768087514167,0.19189413,907.12,906.51,0.68283397]
[1768087514368,0.19189413,907.12,906.52,0.68283397]
[1768087514669,0.19189413,907.12,906.53,0.68283397]
[1768087514866,0.19189413,907.12,906.54,0.68283397]
[1768087515070,0.19189413,907.12,906.55,0.68283397]
[1768087515269,0.19189413,907.12,906.56,0.68283397]
[1768087515468,0.19189413,907.12,906.57,0.68283397]
[1768087515670,0.19189413,907.12,906.58,0.68283397]
[1768087515973,5.52291952,907.15,906.59,0.68283397]
[1768087516268,5.52291952,907.15,906.6,0.68283397]
[1768087516473,5.52291952,907.15,906.61,0.68283397]
[1768087516769,5.52291952,907.15,906.62,0.68283397]
[1768087516974,5.52291952,907.15,906.63,0.68245527]
[1768087517175,5.52291952,907.15,906.64,0.68245527]
[1768087517370,5.52291952,907.15,906.65,0.68245527]
[1768087517572,5.52291952,907.15,906.43,1.774]
[1768087517771,5.52291952,907.15,906.44,0.68236164]
[1768087517970,5.52291952,907.15,906.45,0.68236164]
[1768087518175,5.52291952,907.15,906.46,0.68236164]
[1768087518373,5.52291952,907.15,906.47,0.68236164]
[1768087518573,5.52291952,907.15,906.48,0.68236164]
[1768087518773,5.52291952,907.15,906.49,0.68236164]
[1768087519077,5.52291952,907.15,906.5,0.68236164]
[1768087519273,5.52291952,907.15,906.51,0.68236164]
[1768087519478,5.52291952,907.15,906.52,0.68236164]
[1768087519774,5.52291952,907.15,906.53,0.68236164]
[1768087519978,5.52291952,907.15,906.54,0.68236164]
[1768087520277,5.52291952,907.15,906.43,1.774]
[1768087520278,5.52291952,907.15,906.55,0.68236164]
[1768087520577,5.52291952,907.15,906.56,0.68236164]
[1768087520774,5.52291952,907.15,906.57,0.68236164]
[1768087520978,5.52291952,907.15,906.58,0.68236164]
[1768087521278,5.52291952,907.15,906.59,0.68236164]
[1768087521474,5.52291952,907.15,906.6,0.68236164]
[1768087521777,5.52291952,907.15,906.61,0.68236164]
[1768087522079,5.52291952,907.15,906.62,0.68236164]
[1768087522274,5.52291952,907.15,906.63,0.68236164]
[1768087522475,5.52291952,907.15,906.64,0.68236164]
[1768087522674,5.52291952,907.15,906.43,1.774]
[1768087522875,5.52291952,907.15,906.44,0.68206623]
[1768087523074,5.52291952,907.15,906.45,0.68206623]
[1768087523278,5.52291952,907.15,906.46,0.68206623]
[1768087523577,5.52291952,907.15,906.47,0.68206623]
[1768087523776,5.52291952,907.15,906.48,0.68206623]
[1768087524076,5.52291952,907.15,906.49,0.68206623]
[1768087524282,5.52291952,907.15,906.5,0.68206623]
[1768087524477,5.52291952,907.15,906.43,1.774]
[1768087524478,5.52291952,907.15,906.51,0.68206623]
[1768087524778,5.52291952,907.15,906.52,0.68206623]
[1768087525084,8.32268117,908.06,906.53,0.68206623]
[1768087525279,0.19184864,907.44,906.54,0.68206623]
[1768087525484,8.32268117,908.06,906.55,0.68206623]
[1768087525683,8.32268117,908.06,906.56,0.68206623]
[1768087525883,0.19179947,907.44,906.57,0.68206623]
[1768087526080,8.32268117,908.06,906.58,0.68206623]
[1768087526380,0.19179577,907.46,906.59,0.68206623]
[1768087526578,0.19179577,907.46,906.6,0.68206623]
[1768087526885,0.19178573,907.54,906.61,0.68206623]
[1768087527084,0.19178573,907.54,906.62,0.68206623]
[1768087527284,8.32268117,908.06,906.63,0.68206623]
[1768087527585,0.19177675,907.68,906.64,0.68206623]
[1768087527784,0.19177675,907.68,906.65,0.68206623]
[1768087527987,0.19177675,907.68,906.66,0.68206623]
[1768087528280,0.19177675,907.68,906.67,0.68206623]
[1768087528484,0.19177675,907.68,906.68,0.68206623]
[1768087528682,0.19177675,907.68,906.69,0.68206623]
[1768087528882,0.19177675,907.68,906.7,0.68206623]
[1768087529082,0.19177675,907.68,906.71,0.68206623]
[1768087529282,0.19177675,907.68,906.72,0.68206623]
[1768087529485,0.19177675,907.68,906.73,0.68206623]
[1768087529786,0.19177675,907.68,906.74,0.68206623]
[1768087530084,0.19177675,907.68,906.75,0.68206623]
[1768087530384,0.19177675,907.68,906.76,0.68206623]
[1768087530585,0.19177675,907.68,906.77,0.68206623]
[1768087530781,0.19177675,907.68,906.78,0.68206623]
[1768087530984,0.19177675,907.68,906.79,0.68206623]
[1768087531282,0.19177675,907.68,906.8,0.68206623]
[1768087531481,0.19177675,907.68,906.81,0.68206623]
[1768087531685,0.19177675,907.68,906.82,0.68206623]
[1768087531886,0.19177675,907.68,906.83,0.68206623]
[1768087532181,0.19177675,907.68,906.84,0.68206623]
[1768087532384,0.19177675,907.68,906.85,0.68206623]
[1768087532584,0.19177675,907.68,906.56,0.82230958]
[1768087532785,0.19177675,907.68,906.57,0.68021155]
[1768087533084,0.19177675,907.68,906.58,0.68021155]
[1768087533286,0.19177675,907.68,906.59,0.68021155]
[1768087533485,0.19177675,907.68,906.6,0.68021155]
[1768087533681,0.19177675,907.68,906.61,0.68021155]
[1768087533882,0.19177675,907.68,906.62,0.68021155]
[1768087534186,0.19177675,907.68,906.63,0.68021155]
[1768087534383,0.19177675,907.68,906.64,0.68021155]
[1768087534581,0.19177675,907.68,906.65,0.68021155]
[1768087534781,0.19177675,907.68,906.66,0.68021155]
[1768087534982,0.19177675,907.68,906.67,0.68021155]
[1768087535285,0.19177675,907.68,906.68,0.68021155]
[1768087535485,0.19177675,907.68,906.69,0.68021155]
[1768087535682,0.19177675,907.68,906.7,0.68021155]
[1768087535881,0.19177675,907.68,906.71,0.68021155]
[1768087536081,0.19177675,907.68,906.72,0.68021155]
[1768087536287,0.19177675,907.68,906.73,0.68021155]
[1768087536587,0.19177675,907.68,906.74,0.68021155]
[1768087536787,0.19177675,907.68,906.75,0.68021155]
[1768087536982,0.19177675,907.68,906.76,0.68021155]
[1768087537186,0.19177675,907.68,906.77,0.68021155]
[1768087537387,0.19177675,907.68,906.78,0.68021155]
[1768087537585,0.19177675,907.68,906.79,0.68021155]
[1768087537784,0.19177675,907.68,906.8,0.68021155]
[1768087537988,0.19177675,907.68,906.81,0.68021155]
[1768087538187,0.19177675,907.68,906.82,0.68021155]
[1768087538384,0.19177675,907.68,906.83,0.68021155]
[1768087538585,0.19177675,907.68,906.84,0.68021155]
[1768087538783,0.19177675,907.68,906.85,0.68021155]
[1768087538988,0.19177675,907.68,906.86,0.68021155]
[1768087539188,0.19177675,907.68,906.87,0.68021155]
[1768087539389,0.19177675,907.68,906.88,0.68021155]
[1768087539686,0.19177675,907.68,906.89,0.68021155]
[1768087539891,0.19177675,907.68,906.9,0.68021155]
[1768087540090,0.19177675,907.68,906.61,0.82230958]
[1768087540289,0.19177675,907.68,906.62,1.50199785]
[1768087540489,0.19177675,907.68,906.63,0.67968827]
[1768087540789,0.19177675,907.68,906.64,0.67968827]
[1768087540991,0.19177675,907.68,906.65,0.67968827]
[1768087541289,0.19177675,907.68,906.66,0.67968827]
[1768087541489,0.19177675,907.68,906.67,0.67968827]
[1768087541689,0.19177675,907.68,906.68,0.67968827]
[1768087541891,0.19177675,907.68,906.69,0.67968827]
[1768087542088,0.19177675,907.68,906.7,0.67968827]
[1768087542290,0.19177675,907.68,906.71,0.67968827]
[1768087542586,0.19177675,907.68,906.72,0.67968827]
[1768087542890,0.19177675,907.68,906.73,0.67968827]
[1768087543089,0.19177675,907.68,906.74,0.67968827]
[1768087543290,0.19177675,907.68,906.75,0.67968827]
[1768087543490,0.19177675,907.68,906.76,0.67968827]
[1768087543692,0.19177675,907.68,906.77,0.67968827]
[1768087543987,0.19177675,907.68,906.78,0.67968827]
[1768087544291,0.19177675,907.68,906.79,0.67968827]
[1768087544489,0.19177675,907.68,906.8,0.67968827]
[1768087544689,0.19177675,907.68,906.81,0.67968827]
[1768087544887,0.19177675,907.68,906.82,0.67968827]
[1768087545192,0.19177675,907.68,906.83,0.67968827]
[1768087545392,0.19177675,907.68,906.84,0.67968827]
[1768087545593,0.19177675,907.68,906.85,0.67968827]
[1768087545793,0.19177675,907.68,906.86,0.67968827]
[1768087545991,0.19177675,907.68,906.87,0.67968827]
[1768087546194,0.19177675,907.68,906.88,0.67968827]
[1768087546396,0.19177675,907.68,906.89,0.67968827]
[1768087546691,0.19177675,907.68,906.9,0.67968827]
[1768087546893,0.19177675,907.68,906.91,0.67968827]
[1768087547092,0.19177675,907.68,906.92,0.67968827]
[1768087547294,0.19177675,907.68,906.93,0.67968827]
[1768087547491,0.19177675,907.68,906.94,0.67968827]
[1768087547794,0.19177675,907.68,906.95,0.67968827]
[1768087547992,0.19177675,907.68,906.96,0.67968827]
[1768087548190,0.19177675,907.68,906.97,0.67968827]
[1768087548490,0.19177675,907.68,906.68,0.82230958]
[1768087548690,0.19177675,907.68,906.69,0.67910813]
[1768087548894,0.19177675,907.68,906.7,0.67910813]
[1768087549092,0.19177675,907.68,906.71,0.67910813]
[1768087549293,0.19177675,907.68,906.72,0.67910813]
[1768087549494,0.19177675,907.68,906.73,0.67910813]
[1768087549696,0.19177675,907.68,906.74,0.67910813]
[1768087549996,0.19177675,907.68,906.75,0.67910813]
[1768087550292,0.19177675,907.68,906.76,0.67910813]
[1768087550497,0.19177675,907.68,906.77,0.67910813]
[1768087550698,0.19177675,907.68,906.78,0.67910813]
[1768087550899,0.19177675,907.68,906.79,0.67910813]
[1768087551095,0.19177675,907.68,906.8,0.67910813]
[1768087551396,0.19177675,907.68,906.81,0.67910813]
[1768087551600,0.19177675,907.68,906.82,0.67910813]
[1768087551900,8.32268117,908.06,906.83,0.67910813]
[1768087552195,0.19174505,907.83,906.84,0.67910813]
[1768087552401,0.19174505,907.83,906.85,0.67910813]
[1768087552601,0.19174505,907.83,906.86,0.67910813]
[1768087552802,0.19174505,907.83,906.87,0.67910813]
[1768087553002,0.19174505,907.83,906.88,0.67910813]
[1768087553299,8.32268117,908.06,906.9,0.82230958]
[1768087553500,0.19172233,908.0,906.91,0.67910813]
[1768087553702,0.19172233,908.0,906.92,0.67910813]
[1768087553900,0.19172233,908.0,906.93,0.67910813]
[1768087554104,0.19172233,908.0,906.94,0.67910813]
[1768087554401,0.19172233,908.0,906.95,0.67910813]
[1768087554704,0.19172233,908.0,906.96,0.67910813]
[1768087554900,0.19172233,908.0,906.97,0.67910813]
[1768087555105,0.19172233,908.0,906.98,0.67910813]
[1768087555400,0.19172233,908.0,906.88,0.82230958]
[1768087555401,0.19172233,908.0,906.99,0.67910813]
[1768087555605,0.19172233,908.0,907.0,0.67910813]
[1768087555904,0.19172233,908.0,907.01,0.67910813]
[1768087556104,0.19172233,908.0,907.02,0.67910813]
[1768087556405,0.19172233,908.0,907.03,0.67910813]
[1768087556605,0.19172233,908.0,907.04,0.67910813]
[1768087556904,0.19172233,908.0,907.05,0.67910813]
[1768087557203,0.19172233,908.0,907.06,0.67910813]
[1768087557403,0.19172233,908.0,907.07,0.67910813]
[1768087557606,0.19172233,908.0,907.08,0.67910813]
[1768087557806,0.19172233,908.0,907.09,0.67910813]
[1768087558002,0.19172233,908.0,907.1,0.67910813]
[1768087558205,0.19172233,908.0,907.11,0.67910813]
[1768087558502,0.19172233,908.0,907.12,0.67910813]
[1768087558703,0.19172233,908.0,907.13,0.67910813]
[1768087558902,0.19172233,908.0,907.14,0.67910813]
[1768087559201,0.19172233,908.0,907.15,0.67910813]
[1768087559404,0.19172233,908.0,907.16,0.67910813]
[1768087559605,0.19172233,908.0,907.17,0.67910813]
[1768087559805,0.19172233,908.0,907.18,0.67910813]
[1768087560003,0.19172233,908.0,907.15,1.371]
[1768087560208,0.19172233,908.0,907.16,0.67805841]
[1768087560404,0.19172233,908.0,907.17,0.67805841]
[1768087560608,0.19172233,908.0,907.18,0.67805841]
[1768087560807,0.19172233,908.0,907.19,0.67805841]
[1768087561005,0.19172233,908.0,907.15,1.371]
[1768087561210,0.19172233,908.0,907.16,0.67765094]
[1768087561509,0.19172233,908.0,907.17,0.67765094]
[1768087561808,0.19172233,908.0,907.18,0.67765094]
[1768087562006,0.19172233,908.0,907.19,0.67765094]
[1768087562209,0.19172233,908.0,907.15,1.371]
[1768087562409,0.19172233,908.0,907.16,0.67767804]
[1768087562607,0.19172233,908.0,907.17,0.67767804]
[1768087562806,0.19172233,908.0,907.18,0.67767804]
[1768087563003,0.19172233,908.0,907.19,0.67767804]
[1768087563207,0.19172233,908.0,907.2,0.67778187]
[1768087563406,0.19172233,908.0,907.15,1.371]
[1768087563604,0.19172233,908.0,907.16,0.67772248]
[1768087563809,0.19172233,908.0,907.17,0.67772248]
[1768087564008,0.19172233,908.0,907.18,0.67772248]
[1768087564206,0.19172233,908.0,907.19,0.67772248]
[1768087564409,0.19172233,908.0,907.2,0.67772248]
[1768087564610,0.19172233,908.0,907.15,1.371]
[1768087564912,0.19172233,908.0,907.16,0.67779246]
[1768087565107,0.19172233,908.0,907.17,0.67779246]
[1768087565410,0.19172233,908.0,907.18,0.67779246]
[1768087565608,0.19172233,908.0,907.19,0.67779246]
[1768087565809,0.19172233,908.0,907.2,0.67779246]
[1768087566112,0.19172233,908.0,907.21,0.67779246]
[1768087566412,0.19172233,908.0,907.15,1.371]
[1768087566610,0.19172233,908.0,907.16,0.6780127]
[1768087566813,0.19172233,908.0,907.17,0.6780127]
[1768087567013,0.19172233,908.0,907.18,0.6780127]
[1768087567312,0.19172233,908.0,907.19,0.6780127]
[1768087567513,0.19172233,908.0,907.2,0.6780127]
[1768087567714,0.19172233,908.0,907.21,0.6780127]
[1768087567917,0.19172233,908.0,907.15,1.371]
[1768087567918,0.19172233,908.0,907.22,0.6780127]
[1768087568118,0.19172233,908.0,907.23,0.67838624]
[1768087568318,0.19172233,908.0,907.15,1.371]
[1768087568518,0.19172233,908.0,907.16,0.67835952]
[1768087568719,0.19172233,908.0,907.17,0.67835952]
[1768087568918,0.19172233,908.0,907.18,0.67835952]
[1768087569117,0.19172233,908.0,907.19,0.67835952]
[1768087569314,0.19172233,908.0,907.2,0.67835952]
[1768087569517,0.19172233,908.0,907.21,0.67835952]
[1768087569712,0.19172233,908.0,907.22,0.67835952]
[1768087569914,0.19172233,908.0,907.23,0.67835952]
[1768087570113,0.19172233,908.0,907.24,0.67835952]
[1768087570418,0.19172233,908.0,907.15,1.371]
[1768087570713,0.19172233,908.0,907.16,0.67870097]
[1768087570914,0.19172233,908.0,907.17,0.67870097]
[1768087571117,0.19172233,908.0,907.18,0.67870097]
[1768087571313,0.19172233,908.0,907.15,1.371]
[1768087571314,0.19172233,908.0,907.19,0.67870097]
[1768087571617,0.19172233,908.0,907.2,0.67870097]
[1768087571816,0.19172233,908.0,907.15,1.371]
[1768087571817,0.19172233,908.0,907.21,0.67870097]
[1768087572015,0.19172233,908.0,907.22,0.67870097]
[1768087572317,0.19172233,908.0,907.23,0.67870097]
[1768087572516,0.19172233,908.0,907.15,1.371]
[1768087572517,0.19172233,908.0,907.24,0.67870097]
[1768087572714,0.19172233,908.0,907.25,0.67870097]
[1768087572915,0.19172233,908.0,907.15,1.371]
[1768087573116,0.19172233,908.0,907.16,0.67897062]
[1768087573315,0.19172233,908.0,907.17,0.67897062]
[1768087573521,0.19172233,908.0,907.18,0.67897062]
[1768087573719,0.19172233,908.0,907.19,0.67897062]
[1768087573915,0.19172233,908.0,907.2,0.67897062]
[1768087574120,0.19172233,908.0,907.21,0.67897062]
[1768087574321,0.19172233,908.0,907.22,0.67897062]
[1768087574620,0.19172233,908.0,907.23,0.67897062]
[1768087574815,0.19172233,908.0,907.24,0.67897062]
[1768087575019,0.19172233,908.0,907.25,0.67897062]
[1768087575320,0.19172233,908.0,907.26,0.67897062]
[1768087575520,0.19172233,908.0,907.27,0.67897062]
[1768087575719,0.19172233,908.0,907.15,1.371]
[1768087575917,0.19172233,908.0,907.16,0.6789816]
[1768087576119,0.19172233,908.0,907.17,0.6789816]
[1768087576319,0.19172233,908.0,907.18,0.6789816]
[1768087576518,0.19172233,908.0,907.19,0.6789816]
[1768087576722,0.19172233,908.0,907.2,0.6789816]
[1768087576919,0.19172233,908.0,907.21,0.6789816]
[1768087577124,0.19172233,908.0,907.22,0.6789816]
[1768087577421,0.19172233,908.0,907.23,0.6789816]
[1768087577624,0.19172233,908.0,907.24,0.6789816]
[1768087577821,0.19172233,908.0,907.25,0.6789816]
[1768087578025,0.19172233,908.0,907.26,0.6789816]
[1768087578220,0.19172233,908.0,907.27,0.6789816]
[1768087578424,0.19172233,908.0,907.28,0.6789816]
[1768087578622,0.19172233,908.0,907.29,0.6789816]
[1768087578822,0.19172233,908.0,907.15,1.371]
[1768087579122,0.19172233,908.0,907.16,0.67905471]
[1768087579327,0.19172233,908.0,907.17,0.67905471]
[1768087579623,0.19172233,908.0,907.18,0.67905471]
[1768087579824,0.19172233,908.0,907.19,0.67905471]
[1768087580123,0.19172233,908.0,907.2,0.67905471]
[1768087580328,0.19172233,908.0,907.21,0.67905471]
[1768087580623,0.19172233,908.0,907.22,0.67905471]
[1768087580821,0.19172233,908.0,907.23,0.67905471]
[1768087581020,0.19172233,908.0,907.24,0.67905471]
[1768087581221,0.19172233,908.0,907.25,0.67905471]
[1768087581424,0.19172233,908.0,907.26,0.67905471]
[1768087581721,0.19172233,908.0,907.27,0.67905471]
[1768087581922,0.19172233,908.0,907.28,0.67905471]
[1768087582123,0.19172233,908.0,907.29,0.67905471]
[1768087582426,0.19172233,908.0,907.3,0.67905471]
[1768087582624,0.19172233,908.0,907.15,1.371]
[1768087582824,0.19172233,908.0,907.16,0.67928611]
[1768087583027,0.19172233,908.0,907.17,0.67928611]
[1768087583222,0.19172233,908.0,907.18,0.67928611]
[1768087583423,0.19172233,908.0,907.19,0.67928611]
[1768087583628,0.19172233,908.0,907.2,0.67928611]
[1768087583825,0.19172233,908.0,907.21,0.67928611]
[1768087584025,0.19172233,908.0,907.22,0.67928611]
[1768087584226,0.19172233,908.0,907.23,0.67928611]
[1768087584426,0.19172233,908.0,907.24,0.67928611]
[1768087584625,0.19172233,908.0,907.25,0.67928611]
[1768087584825,0.19172233,908.0,907.26,0.67928611]
[1768087585024,0.19172233,908.0,907.27,0.67928611]
[1768087585229,0.19172233,908.0,907.28,0.67928611]
[1768087585526,0.19172233,908.0,907.29,0.67928611]
[1768087585727,0.19172233,908.0,907.3,0.67928611]
[1768087585927,0.19172233,908.0,907.31,0.67928611]
[1768087586130,0.19172233,908.0,907.15,1.371]
[1768087586331,0.19172233,908.0,907.16,0.67957983]
[1768087586533,0.19172233,908.0,907.17,0.67957983]
[1768087586732,0.19172233,908.0,907.18,0.67957983]
[1768087586929,0.19172233,908.0,907.19,0.67957983]
[1768087587128,0.19172233,908.0,907.2,0.67957983]
[1768087587329,0.19172233,908.0,907.21,0.67957983]
[1768087587631,0.19172233,908.0,907.22,0.67957983]
[1768087587828,0.19172233,908.0,907.23,0.67957983]
[1768087588029,0.19172233,908.0,907.24,0.67957983]
[1768087588229,0.19172233,908.0,907.25,0.67957983]
[1768087588430,0.19172233,908.0,907.26,0.67957983]
[1768087588734,0.19172233,908.0,907.27,0.67957983]
[1768087589029,0.19172233,908.0,907.15,1.371]